[Event "*** Titled Tuesday Blitz"]
[Site "Chess.com"]
[Date "2019.07.02"]
[Round "1"]
[White "doons21"]
[Black "VerdeNotte"]
[Result "0-1"]
[WhiteElo "2439"]
[BlackElo "2841"]
[TimeControl "180+2"]
[EndTime "13:08:43 PDT"]
[Termination "VerdeNotte won by resignation"]

1. e4 {[%clk 0:02:59.9]} 1... c5 {[%clk 0:03:00.2]} 2. c3 {[%clk 0:03:00.6]}
2... d5 {[%clk 0:03:00.8]} 3. exd5 {[%clk 0:03:01.6]} 3... Qxd5 {[%clk
0:03:02.7]} 4. d4 {[%clk 0:03:03]} 4... Nc6 {[%clk 0:03:04.2]} 5. Nf3 {[%clk
0:03:03.7]} 5... Bf5 {[%clk 0:03:05.4]} 6. Be3 {[%clk 0:03:02.6]} 6... cxd4
{[%clk 0:02:59.6]} 7. Nxd4 {[%clk 0:02:56.1]} 7... e6 {[%clk 0:02:58.2]} 8. Qa4
{[%clk 0:02:42.4]} 8... Nf6 {[%clk 0:02:28]} 9. Na3 {[%clk 0:02:20.7]} 9... Be7
{[%clk 0:02:13.3]} 10. Nab5 {[%clk 0:02:21]} 10... O-O {[%clk 0:01:51.9]} 11.
Nc7 {[%clk 0:02:17.5]} 11... Qe4 {[%clk 0:01:52.9]} 12. Nxa8 {[%clk 0:02:17.9]}
12... Nd5 {[%clk 0:01:52.8]} 13. Qd1 {[%clk 0:01:51.7]} 13... Bh4 {[%clk
0:01:34.4]} 14. Qf3 {[%clk 0:01:35.3]} 14... Nxe3 {[%clk 0:01:21]} 15. Qxe4
{[%clk 0:01:11.2]} 15... Bxe4 {[%clk 0:01:22.9]} 16. g3 {[%clk 0:00:34.3]} 16...
Nxd4 {[%clk 0:01:20.5]} 17. fxe3 {[%clk 0:00:35.4]} 17... Nc2+ {[%clk
0:01:20.5]} 18. Kf2 {[%clk 0:00:36.6]} 18... Nxa1 {[%clk 0:01:13.1]} 19. Bg2
{[%clk 0:00:36.7]} 19... Bxg2 {[%clk 0:01:13.6]} 20. Kxg2 {[%clk 0:00:38.1]}
20... Bg5 {[%clk 0:00:51.7]} 21. Rxa1 {[%clk 0:00:35]} 21... Rxa8 {[%clk
0:00:52.1]} 22. Rd1 {[%clk 0:00:28.8]} 22... Rd8 {[%clk 0:00:52.5]} 23. Rxd8+
{[%clk 0:00:26.9]} 23... Bxd8 {[%clk 0:00:53]} 24. Kf3 {[%clk 0:00:27.7]} 24...
f5 {[%clk 0:00:53.6]} 25. e4 {[%clk 0:00:28.7]} 25... fxe4+ {[%clk 0:00:53]} 26.
Kxe4 {[%clk 0:00:29.7]} 26... Kf7 {[%clk 0:00:54.3]} 27. c4 {[%clk 0:00:30.3]}
27... Bc7 {[%clk 0:00:54.7]} 28. b4 {[%clk 0:00:31.5]} 28... g5 {[%clk
0:00:54.8]} 29. a4 {[%clk 0:00:32.5]} 29... h5 {[%clk 0:00:55.2]} 30. c5 {[%clk
0:00:33.4]} 30... a6 {[%clk 0:00:53.4]} 31. b5 {[%clk 0:00:34.6]} 31... axb5
{[%clk 0:00:54.7]} 32. axb5 {[%clk 0:00:36.5]} 32... Ke7 {[%clk 0:00:56.1]} 33.
Kd4 {[%clk 0:00:37.5]} 33... Kd7 {[%clk 0:00:53.8]} 34. Ke4 {[%clk 0:00:37.4]}
34... Bb8 {[%clk 0:00:50.7]} 35. Kd4 {[%clk 0:00:37.7]} 35... Bxg3 {[%clk
0:00:47.5]} 36. hxg3 {[%clk 0:00:38.1]} 36... h4 {[%clk 0:00:48.9]} 37. gxh4
{[%clk 0:00:38.4]} 37... gxh4 {[%clk 0:00:49.8]} 38. Ke4 {[%clk 0:00:39.8]}
38... e5 {[%clk 0:00:44.3]} 39. Kf3 {[%clk 0:00:30.9]} 39... Ke6 {[%clk
0:00:41.7]} 40. Kg4 {[%clk 0:00:29.2]} 40... Kd5 {[%clk 0:00:42.1]} 41. c6
{[%clk 0:00:09.9]} 41... bxc6 {[%clk 0:00:41.5]} 42. b6 {[%clk 0:00:11.8]} 42...
Kd6 {[%clk 0:00:40.9]} 43. Kxh4 {[%clk 0:00:13]} 43... c5 {[%clk 0:00:38.5]} 44.
Kg4 {[%clk 0:00:14.7]} 44... Kc6 {[%clk 0:00:37]} 45. b7 {[%clk 0:00:14.1]}
45... Kxb7 {[%clk 0:00:37.8]} 46. Kf5 {[%clk 0:00:16]} 46... c4 {[%clk
0:00:38.7]} 0-1

[Event "*** Titled Tuesday Blitz"]
[Site "Chess.com"]
[Date "2019.07.02"]
[Round "1"]
[White "swisspower96"]
[Black "MateSchmate"]
[Result "1-0"]
[WhiteElo "2699"]
[BlackElo "2349"]
[TimeControl "180+2"]
[EndTime "13:08:48 PDT"]
[Termination "swisspower96 won by resignation"]

1. d4 {[%clk 0:03:01.2]} 1... Nf6 {[%clk 0:02:59.4]} 2. c4 {[%clk 0:03:02.2]}
2... e6 {[%clk 0:02:58.2]} 3. Nf3 {[%clk 0:02:57.2]} 3... d5 {[%clk 0:02:58.5]}
4. g3 {[%clk 0:02:58.1]} 4... Be7 {[%clk 0:02:59.1]} 5. Bg2 {[%clk 0:02:59]}
5... O-O {[%clk 0:02:59.5]} 6. O-O {[%clk 0:02:55.2]} 6... dxc4 {[%clk
0:02:54.5]} 7. Qc2 {[%clk 0:02:54]} 7... a6 {[%clk 0:02:45.4]} 8. a4 {[%clk
0:02:54.3]} 8... Bd7 {[%clk 0:02:45.6]} 9. Qxc4 {[%clk 0:02:47.8]} 9... Bc6
{[%clk 0:02:44.4]} 10. Bg5 {[%clk 0:02:48.4]} 10... Nbd7 {[%clk 0:02:29.2]} 11.
a5 {[%clk 0:02:34.8]} 11... Bd5 {[%clk 0:01:58.7]} 12. Qd3 {[%clk 0:02:35.3]}
12... c5 {[%clk 0:01:53.3]} 13. Nc3 {[%clk 0:02:36.2]} 13... cxd4 {[%clk
0:01:45.4]} 14. Nxd5 {[%clk 0:02:35.6]} 14... Nxd5 {[%clk 0:01:45.8]} 15. Bxe7
{[%clk 0:02:36.7]} 15... Qxe7 {[%clk 0:01:43.9]} 16. Nxd4 {[%clk 0:02:37.7]}
16... N7f6 {[%clk 0:01:35.5]} 17. Rfc1 {[%clk 0:02:34.7]} 17... Rfd8 {[%clk
0:01:33.6]} 18. Qb3 {[%clk 0:02:35.4]} 18... Rd7 {[%clk 0:01:15.3]} 19. Ra4
{[%clk 0:02:33.5]} 19... Rad8 {[%clk 0:01:13.8]} 20. e3 {[%clk 0:02:29.9]} 20...
Rc7 {[%clk 0:00:57.9]} 21. Rac4 {[%clk 0:02:24.9]} 21... Rdc8 {[%clk 0:00:53.5]}
22. Ne2 {[%clk 0:02:04.9]} 22... g6 {[%clk 0:00:32.9]} 23. h3 {[%clk 0:01:58.4]}
23... Rxc4 {[%clk 0:00:33.3]} 24. Rxc4 {[%clk 0:01:59.1]} 24... Rxc4 {[%clk
0:00:34.3]} 25. Qxc4 {[%clk 0:02:00.4]} 25... Qc7 {[%clk 0:00:34.5]} 26. Qxc7
{[%clk 0:02:00.6]} 26... Nxc7 {[%clk 0:00:33.9]} 27. Bxb7 {[%clk 0:02:02.2]}
27... Nd7 {[%clk 0:00:31.8]} 28. b4 {[%clk 0:01:58.5]} 28... Ne5 {[%clk
0:00:32.5]} 29. Nd4 {[%clk 0:01:50.9]} 29... Nd3 {[%clk 0:00:28.5]} 30. Nc2
{[%clk 0:01:36.5]} 30... Kf8 {[%clk 0:00:25.6]} 31. Kf1 {[%clk 0:01:37.8]} 31...
Ke7 {[%clk 0:00:21.5]} 32. Ke2 {[%clk 0:01:39.4]} 32... Nb2 {[%clk 0:00:21.4]}
33. Nd4 {[%clk 0:01:31]} 33... Nc4 {[%clk 0:00:21.3]} 34. Nb3 {[%clk 0:01:31.7]}
34... Nd6 {[%clk 0:00:21.7]} 35. Bc6 {[%clk 0:01:31]} 35... e5 {[%clk
0:00:21.6]} 36. Nc5 {[%clk 0:01:32.2]} 36... f5 {[%clk 0:00:22.4]} 37. f4 {[%clk
0:01:32.4]} 37... e4 {[%clk 0:00:21.7]} 38. Kd2 {[%clk 0:01:33.7]} 38... Nc4+
{[%clk 0:00:19.7]} 39. Ke2 {[%clk 0:01:35.2]} 39... Nxa5 {[%clk 0:00:20.5]} 40.
bxa5 {[%clk 0:01:35.7]} 40... Kd6 {[%clk 0:00:22]} 41. Nxa6 {[%clk 0:01:24.2]}
41... Nxa6 {[%clk 0:00:16.7]} 42. Bb5 {[%clk 0:01:25.2]} 42... Nc5 {[%clk
0:00:15.4]} 43. Bc4 {[%clk 0:01:26.5]} 43... Kc6 {[%clk 0:00:15.9]} 44. Bg8
{[%clk 0:01:26.9]} 44... Nd7 {[%clk 0:00:08.6]} 45. Bxh7 {[%clk 0:01:21.3]}
45... Nf8 {[%clk 0:00:09.4]} 46. Bg8 {[%clk 0:01:22.4]} 46... Kb5 {[%clk
0:00:10.7]} 47. Kd2 {[%clk 0:01:22.7]} 47... Kxa5 {[%clk 0:00:12]} 48. Kc3
{[%clk 0:01:24.3]} 48... Kb5 {[%clk 0:00:13.5]} 49. Kd4 {[%clk 0:01:25.8]} 49...
Kb4 {[%clk 0:00:12.3]} 50. Bf7 {[%clk 0:01:27.2]} 50... Kb5 {[%clk 0:00:09.2]}
51. g4 {[%clk 0:01:24.7]} 51... fxg4 {[%clk 0:00:06]} 52. hxg4 {[%clk
0:01:26.6]} 52... Kc6 {[%clk 0:00:06.9]} 53. Ke5 {[%clk 0:01:25.7]} 53... Kd7
{[%clk 0:00:07.6]} 54. Kf6 {[%clk 0:01:26.9]} 54... Kd6 {[%clk 0:00:09.1]} 55.
Bxg6 {[%clk 0:01:27.8]} 55... Ne6 {[%clk 0:00:10.4]} 56. Bxe4 {[%clk 0:01:28.6]}
56... Nc5 {[%clk 0:00:11.9]} 57. Bc2 {[%clk 0:01:29.4]} 57... Nd7+ {[%clk
0:00:13.4]} 58. Kg7 {[%clk 0:01:30.6]} 58... Ke6 {[%clk 0:00:14.6]} 59. f5+
{[%clk 0:01:31.7]} 59... Ke5 {[%clk 0:00:15.6]} 60. g5 {[%clk 0:01:33.1]} 60...
Nb6 {[%clk 0:00:13.7]} 61. f6 {[%clk 0:01:34.2]} 61... Nc4 {[%clk 0:00:11.4]}
62. f7 {[%clk 0:01:35.2]} 62... Nd6 {[%clk 0:00:13.3]} 63. f8=Q {[%clk
0:01:36.1]} 1-0

[Event "*** Titled Tuesday Blitz"]
[Site "Chess.com"]
[Date "2019.07.02"]
[Round "1"]
[White "NeverEverForever1990"]
[Black "Keranke"]
[Result "1/2-1/2"]
[WhiteElo "2452"]
[BlackElo "2841"]
[TimeControl "180+2"]
[EndTime "13:08:52 PDT"]
[Termination "Game drawn by repetition"]

1. d4 {[%clk 0:03:00.1]} 1... Nf6 {[%clk 0:02:59.7]} 2. c4 {[%clk 0:02:58]} 2...
g6 {[%clk 0:03:00.8]} 3. Nc3 {[%clk 0:02:58.6]} 3... Bg7 {[%clk 0:03:02]} 4. e4
{[%clk 0:03:00.1]} 4... O-O {[%clk 0:03:03.4]} 5. Be3 {[%clk 0:03:00.8]} 5... d6
{[%clk 0:03:04.9]} 6. Be2 {[%clk 0:03:02]} 6... e5 {[%clk 0:03:03]} 7. d5 {[%clk
0:03:01.7]} 7... a5 {[%clk 0:03:03.1]} 8. g4 {[%clk 0:03:02.6]} 8... Na6 {[%clk
0:03:03.8]} 9. h4 {[%clk 0:03:02.6]} 9... Nc5 {[%clk 0:03:03.5]} 10. f3 {[%clk
0:03:00.7]} 10... h5 {[%clk 0:03:04.2]} 11. g5 {[%clk 0:03:01.7]} 11... Nfd7
{[%clk 0:03:02.8]} 12. Qd2 {[%clk 0:02:56.9]} 12... f5 {[%clk 0:02:53]} 13. Nh3
{[%clk 0:02:55.7]} 13... Nb6 {[%clk 0:02:45]} 14. b3 {[%clk 0:02:31.9]} 14...
Bd7 {[%clk 0:02:26.5]} 15. Nf2 {[%clk 0:02:05]} 15... f4 {[%clk 0:02:11.1]} 16.
Bxc5 {[%clk 0:02:05.9]} 16... dxc5 {[%clk 0:02:11.5]} 17. a4 {[%clk 0:01:56.9]}
17... Nc8 {[%clk 0:02:11.1]} 18. Bf1 {[%clk 0:01:57.4]} 18... c6 {[%clk
0:02:04.6]} 19. Bh3 {[%clk 0:01:56.7]} 19... Ne7 {[%clk 0:01:51.7]} 20. O-O-O
{[%clk 0:01:50.5]} 20... Bxh3 {[%clk 0:01:41.3]} 21. Nxh3 {[%clk 0:01:29.6]}
21... Qb6 {[%clk 0:01:28.3]} 22. Kc2 {[%clk 0:01:18.3]} 22... Rfd8 {[%clk
0:01:24.3]} 23. Nf2 {[%clk 0:01:06.4]} 23... Kh7 {[%clk 0:01:06.2]} 24. d6
{[%clk 0:00:44.6]} 24... Rd7 {[%clk 0:00:57.4]} 25. dxe7 {[%clk 0:00:35]} 25...
Rxd2+ {[%clk 0:00:59.3]} 26. Rxd2 {[%clk 0:00:36.5]} 26... Re8 {[%clk
0:00:53.6]} 27. Rd7 {[%clk 0:00:34.9]} 27... Kg8 {[%clk 0:00:55.1]} 28. Rhd1
{[%clk 0:00:30.4]} 28... Kf7 {[%clk 0:00:56.6]} 29. R1d6 {[%clk 0:00:28.6]}
29... Qb4 {[%clk 0:00:57.8]} 30. Nd3 {[%clk 0:00:22.8]} 30... Qa3 {[%clk
0:00:58.9]} 31. Nb1 {[%clk 0:00:18.8]} 31... Qa2+ {[%clk 0:00:59.1]} 32. Nb2
{[%clk 0:00:19.9]} 32... b5 {[%clk 0:00:57]} 33. Nc3 {[%clk 0:00:08]} 33... Qa3
{[%clk 0:00:54.3]} 34. Rxc6 {[%clk 0:00:09.2]} 34... bxa4 {[%clk 0:00:51.6]} 35.
Nbxa4 {[%clk 0:00:09.4]} 35... Rxe7 {[%clk 0:00:42.1]} 36. Rxe7+ {[%clk
0:00:10.1]} 36... Kxe7 {[%clk 0:00:44]} 37. Nd5+ {[%clk 0:00:11.2]} 37... Kf7
{[%clk 0:00:39.7]} 38. Rc7+ {[%clk 0:00:12.1]} 38... Kg8 {[%clk 0:00:41.2]} 39.
Rc8+ {[%clk 0:00:11.6]} 39... Kh7 {[%clk 0:00:37.2]} 40. Rc7 {[%clk 0:00:13.5]}
40... Kg8 {[%clk 0:00:36.2]} 41. Rc8+ {[%clk 0:00:14.5]} 41... Bf8 {[%clk
0:00:37.9]} 42. Rc7 {[%clk 0:00:12.8]} 42... Qa2+ {[%clk 0:00:36.2]} 43. Nb2
{[%clk 0:00:13.4]} 43... Bd6 {[%clk 0:00:33.5]} 44. Rd7 {[%clk 0:00:13.1]} 44...
Qa1 {[%clk 0:00:27.4]} 45. Nf6+ {[%clk 0:00:13.8]} 45... Kf8 {[%clk 0:00:27.9]}
46. Nh7+ {[%clk 0:00:14.3]} 46... Ke8 {[%clk 0:00:29.2]} 47. Nf6+ {[%clk
0:00:15.4]} 47... Kf8 {[%clk 0:00:30.8]} 48. Nh7+ {[%clk 0:00:16.7]} 48... Kg8
{[%clk 0:00:32.1]} 49. Nf6+ {[%clk 0:00:18]} 49... Kf8 {[%clk 0:00:33.7]}
1/2-1/2

[Event "*** Titled Tuesday Blitz"]
[Site "Chess.com"]
[Date "2019.07.02"]
[Round "1"]
[White "andrzej"]
[Black "darsen_sanzhaev"]
[Result "0-1"]
[WhiteElo "2306"]
[BlackElo "2647"]
[TimeControl "180+2"]
[EndTime "13:08:56 PDT"]
[Termination "darsen_sanzhaev won by checkmate"]

1. d4 {[%clk 0:03:00.2]} 1... Nf6 {[%clk 0:03:00.8]} 2. Bg5 {[%clk 0:03:01.3]}
2... Ne4 {[%clk 0:02:59.4]} 3. h4 {[%clk 0:03:02.6]} 3... c5 {[%clk 0:02:57.9]}
4. d5 {[%clk 0:03:04]} 4... Qa5+ {[%clk 0:02:56.7]} 5. c3 {[%clk 0:03:00.1]}
5... d6 {[%clk 0:02:57.5]} 6. Nd2 {[%clk 0:02:55.8]} 6... Nxd2 {[%clk
0:02:54.2]} 7. Qxd2 {[%clk 0:02:52.7]} 7... h6 {[%clk 0:02:47.6]} 8. Bf4 {[%clk
0:02:51.8]} 8... Bf5 {[%clk 0:02:48.8]} 9. h5 {[%clk 0:02:49.6]} 9... Nd7 {[%clk
0:02:49.7]} 10. e3 {[%clk 0:02:36.6]} 10... g5 {[%clk 0:02:35.9]} 11. hxg6
{[%clk 0:02:34.4]} 11... Bxg6 {[%clk 0:02:37.3]} 12. Bd3 {[%clk 0:02:32.2]}
12... O-O-O {[%clk 0:02:32.9]} 13. Ne2 {[%clk 0:02:25.4]} 13... Nf6 {[%clk
0:02:30.8]} 14. f3 {[%clk 0:02:03]} 14... Rg8 {[%clk 0:02:21.8]} 15. Kf2 {[%clk
0:02:01.5]} 15... Nxd5 {[%clk 0:02:12.2]} 16. Bxg6 {[%clk 0:01:53.3]} 16... Nxf4
{[%clk 0:02:13.2]} 17. Nxf4 {[%clk 0:01:53.9]} 17... fxg6 {[%clk 0:02:12.3]} 18.
Qd5 {[%clk 0:01:48]} 18... Bg7 {[%clk 0:02:11.1]} 19. Ne6 {[%clk 0:01:42.2]}
19... Rde8 {[%clk 0:02:01]} 20. Nxg7 {[%clk 0:01:35.9]} 20... Rxg7 {[%clk
0:02:02.9]} 21. Rxh6 {[%clk 0:01:35.4]} 21... Qb6 {[%clk 0:02:02.6]} 22. b3
{[%clk 0:01:27.4]} 22... Rf8 {[%clk 0:01:57.2]} 23. Qe6+ {[%clk 0:01:19.2]}
23... Kb8 {[%clk 0:01:54.2]} 24. Rxg6 {[%clk 0:01:20.4]} 24... Rxg6 {[%clk
0:01:53.7]} 25. Qxg6 {[%clk 0:01:22.3]} 25... c4 {[%clk 0:01:51.2]} 26. Qg7
{[%clk 0:01:11.3]} 26... Rc8 {[%clk 0:01:49.4]} 27. b4 {[%clk 0:01:05.9]} 27...
Qc7 {[%clk 0:01:42.3]} 28. Rd1 {[%clk 0:01:00.3]} 28... a5 {[%clk 0:01:39.9]}
29. a3 {[%clk 0:00:55]} 29... axb4 {[%clk 0:01:30.6]} 30. axb4 {[%clk
0:00:56.1]} 30... Qd7 {[%clk 0:01:30.2]} 31. Qd4 {[%clk 0:00:54.8]} 31... Qa4
{[%clk 0:01:29.7]} 32. g4 {[%clk 0:00:39.2]} 32... Qc2+ {[%clk 0:01:19.4]} 33.
Qd2 {[%clk 0:00:37.4]} 33... Qh7 {[%clk 0:01:17.4]} 34. e4 {[%clk 0:00:19.6]}
34... Rf8 {[%clk 0:00:44]} 35. Rg1 {[%clk 0:00:11.6]} 35... Qh3 {[%clk 0:00:41]}
36. Qe3 {[%clk 0:00:10.4]} 36... Qh2+ {[%clk 0:00:38.8]} 37. Rg2 {[%clk
0:00:11.4]} 37... Qh1 {[%clk 0:00:40.2]} 38. Rg1 {[%clk 0:00:11.4]} 38... Qh4+
{[%clk 0:00:41.4]} 39. Rg3 {[%clk 0:00:11.7]} 39... Kc7 {[%clk 0:00:28.1]} 40.
e5 {[%clk 0:00:11.3]} 40... Ra8 {[%clk 0:00:27.6]} 41. Qe2 {[%clk 0:00:06]}
41... b5 {[%clk 0:00:23.3]} 42. exd6+ {[%clk 0:00:06.8]} 42... exd6 {[%clk
0:00:25.2]} 43. Kg2 {[%clk 0:00:07.5]} 43... Rh8 {[%clk 0:00:23.9]} 44. Qf2
{[%clk 0:00:05.1]} 44... Qh1# {[%clk 0:00:24]} 0-1

[Event "*** Titled Tuesday Blitz"]
[Site "Chess.com"]
[Date "2019.07.02"]
[Round "1"]
[White "PotapovaM"]
[Black "Nightlord1"]
[Result "0-1"]
[WhiteElo "2500"]
[BlackElo "2124"]
[TimeControl "180+2"]
[EndTime "13:09:01 PDT"]
[Termination "Nightlord1 won by checkmate"]

1. d4 {[%clk 0:02:55.3]} 1... Nf6 {[%clk 0:03:00.6]} 2. c4 {[%clk 0:02:52.8]}
2... e5 {[%clk 0:03:01.9]} 3. dxe5 {[%clk 0:02:53.3]} 3... Ng4 {[%clk 0:03:02]}
4. e3 {[%clk 0:02:50.6]} 4... Nxe5 {[%clk 0:03:00.9]} 5. Nh3 {[%clk 0:02:48.8]}
5... Ng6 {[%clk 0:03:01.9]} 6. Nc3 {[%clk 0:02:48.2]} 6... Nc6 {[%clk
0:03:02.2]} 7. Nd5 {[%clk 0:02:28.3]} 7... d6 {[%clk 0:02:51.5]} 8. Nhf4 {[%clk
0:02:27.5]} 8... Be7 {[%clk 0:02:50.1]} 9. Be2 {[%clk 0:02:24]} 9... O-O {[%clk
0:02:46.5]} 10. O-O {[%clk 0:02:24.7]} 10... Nce5 {[%clk 0:02:40.6]} 11. b3
{[%clk 0:02:24.4]} 11... c6 {[%clk 0:02:37.3]} 12. Nxe7+ {[%clk 0:02:23.5]}
12... Qxe7 {[%clk 0:02:38.1]} 13. Nxg6 {[%clk 0:02:23.4]} 13... fxg6 {[%clk
0:02:26.3]} 14. Ba3 {[%clk 0:02:21.8]} 14... c5 {[%clk 0:02:20.2]} 15. Bb2
{[%clk 0:02:19.1]} 15... Bd7 {[%clk 0:02:16.5]} 16. Qd2 {[%clk 0:02:10.6]} 16...
Bc6 {[%clk 0:02:15.8]} 17. f3 {[%clk 0:02:09.1]} 17... Rad8 {[%clk 0:02:09]} 18.
e4 {[%clk 0:02:09.1]} 18... Kh8 {[%clk 0:02:07.9]} 19. Rad1 {[%clk 0:02:09.3]}
19... g5 {[%clk 0:02:05.1]} 20. Qe3 {[%clk 0:01:57.5]} 20... h6 {[%clk
0:01:55.8]} 21. Rd2 {[%clk 0:01:56.6]} 21... b6 {[%clk 0:01:53]} 22. Rfd1 {[%clk
0:01:57.6]} 22... Rf6 {[%clk 0:01:45.4]} 23. h3 {[%clk 0:01:39.1]} 23... Kh7
{[%clk 0:01:43.6]} 24. a3 {[%clk 0:01:37.9]} 24... Rff8 {[%clk 0:01:33.6]} 25.
b4 {[%clk 0:01:37.8]} 25... Ba4 {[%clk 0:01:25.8]} 26. Rc1 {[%clk 0:01:35.2]}
26... Bc6 {[%clk 0:01:26.9]} 27. Kh1 {[%clk 0:01:33.2]} 27... Rf6 {[%clk
0:01:26.3]} 28. Kg1 {[%clk 0:01:33.7]} 28... Rff8 {[%clk 0:01:25.9]} 29. Qc3
{[%clk 0:01:33.1]} 29... Rf7 {[%clk 0:01:23.5]} 30. Qb3 {[%clk 0:01:32]} 30...
Rff8 {[%clk 0:01:16.6]} 31. Bc3 {[%clk 0:01:33.1]} 31... h5 {[%clk 0:01:14.3]}
32. Qb2 {[%clk 0:01:30.3]} 32... g4 {[%clk 0:01:13.5]} 33. hxg4 {[%clk
0:01:27.2]} 33... hxg4 {[%clk 0:01:13.4]} 34. f4 {[%clk 0:01:00.2]} 34... Qh4
{[%clk 0:00:57.5]} 35. Bxe5 {[%clk 0:00:52.2]} 35... g3 {[%clk 0:00:54.1]} 36.
Bf3 {[%clk 0:00:49.5]} 36... dxe5 {[%clk 0:00:52]} 37. Rxd8 {[%clk 0:00:45.4]}
37... Rxd8 {[%clk 0:00:50.1]} 38. Kf1 {[%clk 0:00:39.8]} 38... Qxf4 {[%clk
0:00:37]} 39. Ke2 {[%clk 0:00:34.9]} 39... Bxe4 {[%clk 0:00:33.8]} 40. Rh1+
{[%clk 0:00:22.9]} 40... Kg6 {[%clk 0:00:29.9]} 41. Bh5+ {[%clk 0:00:16.3]}
41... Kf5 {[%clk 0:00:21.3]} 42. Qc1 {[%clk 0:00:03.8]} 42... Bd3+ {[%clk
0:00:17.8]} 43. Kd1 {[%clk 0:00:04.9]} 43... Bb1+ {[%clk 0:00:08.6]} 44. Ke2
{[%clk 0:00:05]} 44... Qf2# {[%clk 0:00:09.4]} 0-1

[Event "*** Titled Tuesday Blitz"]
[Site "Chess.com"]
[Date "2019.07.02"]
[Round "1"]
[White "Etoilegeniale"]
[Black "iturrizaga"]
[Result "0-1"]
[WhiteElo "2458"]
[BlackElo "2935"]
[TimeControl "180+2"]
[EndTime "13:09:03 PDT"]
[Termination "iturrizaga won by resignation"]

1. e4 {[%clk 0:03:01.9]} 1... c5 {[%clk 0:03:00.6]} 2. Nf3 {[%clk 0:03:02.1]}
2... g6 {[%clk 0:03:02]} 3. c3 {[%clk 0:03:02.2]} 3... Nf6 {[%clk 0:03:02.1]} 4.
e5 {[%clk 0:03:02.2]} 4... Nd5 {[%clk 0:03:00.6]} 5. d4 {[%clk 0:03:02.4]} 5...
cxd4 {[%clk 0:03:01.8]} 6. cxd4 {[%clk 0:03:02.8]} 6... Bg7 {[%clk 0:03:02.9]}
7. Bc4 {[%clk 0:03:03.3]} 7... Nb6 {[%clk 0:03:02.9]} 8. Bb3 {[%clk 0:03:04.1]}
8... Nc6 {[%clk 0:03:03.9]} 9. O-O {[%clk 0:02:58.2]} 9... O-O {[%clk 0:03:04]}
10. Nc3 {[%clk 0:02:40.2]} 10... d6 {[%clk 0:03:03.5]} 11. exd6 {[%clk
0:02:30.5]} 11... Qxd6 {[%clk 0:03:05.4]} 12. h3 {[%clk 0:02:21.4]} 12... Nxd4
{[%clk 0:03:02.9]} 13. Nxd4 {[%clk 0:02:22.1]} 13... Qxd4 {[%clk 0:03:04.8]} 14.
Qxd4 {[%clk 0:02:17.2]} 14... Bxd4 {[%clk 0:03:06.7]} 15. Nb5 {[%clk 0:02:17.8]}
15... Bf6 {[%clk 0:02:59.8]} 16. Nc7 {[%clk 0:02:08.7]} 16... Rb8 {[%clk
0:03:00.1]} 17. Bf4 {[%clk 0:02:09.1]} 17... e5 {[%clk 0:02:50.3]} 18. Bg3
{[%clk 0:02:09.5]} 18... Bd7 {[%clk 0:02:43.5]} 19. Rfe1 {[%clk 0:02:10.2]}
19... Rbc8 {[%clk 0:02:39.2]} 20. Nd5 {[%clk 0:02:08.6]} 20... Nxd5 {[%clk
0:02:39.9]} 21. Bxd5 {[%clk 0:02:09.3]} 21... Rfe8 {[%clk 0:02:38]} 22. Bxb7
{[%clk 0:02:00.8]} 22... Rb8 {[%clk 0:02:38.8]} 23. Bd5 {[%clk 0:02:01.4]} 23...
Rxb2 {[%clk 0:02:39.5]} 24. Rac1 {[%clk 0:01:51.3]} 24... Rd2 {[%clk 0:02:26.8]}
25. Bb3 {[%clk 0:01:45.5]} 25... a5 {[%clk 0:02:15.9]} 26. Rc7 {[%clk
0:01:43.7]} 26... Be6 {[%clk 0:02:03.8]} 27. Bxe6 {[%clk 0:01:29.9]} 27... Rxe6
{[%clk 0:02:05.7]} 28. Rb1 {[%clk 0:01:28]} 28... Bd8 {[%clk 0:01:27.4]} 29. Rc5
{[%clk 0:00:47.2]} 29... f6 {[%clk 0:01:16.3]} 30. Rb7 {[%clk 0:00:45.2]} 30...
Red6 {[%clk 0:01:08.4]} 31. Rc8 {[%clk 0:00:34.9]} 31... Rd7 {[%clk 0:01:08.6]}
32. Rxd7 {[%clk 0:00:27.8]} 32... Rxd7 {[%clk 0:01:08.8]} 33. f4 {[%clk
0:00:28.8]} 33... e4 {[%clk 0:01:02.6]} 34. Bf2 {[%clk 0:00:27.7]} 34... Kf7
{[%clk 0:01:03.6]} 35. Ra8 {[%clk 0:00:27]} 35... f5 {[%clk 0:01:03.2]} 36. g4
{[%clk 0:00:27.1]} 36... Ke6 {[%clk 0:01:01.6]} 37. Kg2 {[%clk 0:00:25.6]} 37...
Rd2 {[%clk 0:00:59]} 38. Kg3 {[%clk 0:00:26.6]} 38... Rd3+ {[%clk 0:01:00.1]}
39. Kg2 {[%clk 0:00:27.5]} 39... h5 {[%clk 0:00:53.9]} 40. Ra6+ {[%clk
0:00:27.3]} 40... Rd6 {[%clk 0:00:54.2]} 41. gxf5+ {[%clk 0:00:27.1]} 41... gxf5
{[%clk 0:00:54.8]} 42. Ra7 {[%clk 0:00:27.8]} 42... Rd2 {[%clk 0:00:52.6]} 43.
Ra6+ {[%clk 0:00:27.7]} 43... Kd5 {[%clk 0:00:52.9]} 44. Kf1 {[%clk 0:00:26]}
44... Rxa2 {[%clk 0:00:50.9]} 45. Rh6 {[%clk 0:00:25.9]} 45... h4 {[%clk
0:00:42.4]} 46. Rh5 {[%clk 0:00:26.2]} 46... e3 {[%clk 0:00:35.2]} 47. Rxf5+
{[%clk 0:00:22.8]} 47... Ke4 {[%clk 0:00:36.5]} 48. Re5+ {[%clk 0:00:21.7]}
48... Kxf4 {[%clk 0:00:37.8]} 49. Rxe3 {[%clk 0:00:22.4]} 49... Rxf2+ {[%clk
0:00:38.6]} 50. Kxf2 {[%clk 0:00:12.7]} 50... Bb6 {[%clk 0:00:38.1]} 0-1